[Event "*** Titled Tuesday Blitz"]
[Site "Chess.com"]
[Date "2018.04.03"]
[Round "3"]
[White "gkchesstiger"]
[Black "maciek_92"]
[Result "1/2-1/2"]
[WhiteElo "2740"]
[BlackElo "2549"]
[TimeControl "180+2"]
[EndTime "13:37:15 PDT"]
[Termination "Game drawn by agreement"]

1. d4 {[%clk 0:03:01.9]} 1... Nf6 {[%clk 0:02:59]} 2. Nf3 {[%clk 0:03:02.6]}
2... d5 {[%clk 0:02:59.4]} 3. Bf4 {[%clk 0:03:03.4]} 3... c5 {[%clk 0:02:59.6]}
4. e3 {[%clk 0:03:04.6]} 4... Nc6 {[%clk 0:03:00.9]} 5. Nbd2 {[%clk 0:03:05.3]}
5... Bg4 {[%clk 0:02:55.9]} 6. h3 {[%clk 0:03:03.5]} 6... Bxf3 {[%clk
0:02:52.9]} 7. Nxf3 {[%clk 0:03:04.1]} 7... e6 {[%clk 0:02:54.8]} 8. c3 {[%clk
0:03:03.6]} 8... Bd6 {[%clk 0:02:55.8]} 9. dxc5 {[%clk 0:02:57]} 9... Bxc5
{[%clk 0:02:41.6]} 10. Qb3 {[%clk 0:02:52.4]} 10... Qe7 {[%clk 0:02:40.7]} 11.
Bb5 {[%clk 0:02:50.5]} 11... O-O {[%clk 0:02:41]} 12. O-O {[%clk 0:02:50.3]}
12... Bd6 {[%clk 0:02:37.3]} 13. Bg5 {[%clk 0:02:34.7]} 13... h6 {[%clk
0:02:34.4]} 14. Bxf6 {[%clk 0:02:35.4]} 14... Qxf6 {[%clk 0:02:35.4]} 15. Bxc6
{[%clk 0:02:36.7]} 15... bxc6 {[%clk 0:02:37.3]} 16. Qa4 {[%clk 0:02:37.6]}
16... Rfc8 {[%clk 0:02:33.7]} 17. e4 {[%clk 0:02:35.2]} 17... Qf4 {[%clk
0:02:32.2]} 18. Rfe1 {[%clk 0:02:34.9]} 18... a5 {[%clk 0:02:26.1]} 19. Qc2
{[%clk 0:02:33.6]} 19... Rab8 {[%clk 0:02:23.2]} 20. Rad1 {[%clk 0:02:33.3]}
20... Be7 {[%clk 0:01:47.3]} 21. b3 {[%clk 0:02:28.7]} 21... Rd8 {[%clk
0:01:39.5]} 22. Rd4 {[%clk 0:02:24.8]} 22... Qc7 {[%clk 0:01:34.5]} 23. g3
{[%clk 0:02:19.2]} 23... Bc5 {[%clk 0:01:29.9]} 24. exd5 {[%clk 0:01:59]} 24...
Bxd4 {[%clk 0:01:25.4]} 25. cxd4 {[%clk 0:01:58.4]} 25... Rxd5 {[%clk
0:01:26.5]} 26. Rc1 {[%clk 0:01:56.6]} 26... c5 {[%clk 0:01:16.6]} 27. Qc3
{[%clk 0:01:50]} 27... Rc8 {[%clk 0:01:10.8]} 28. a3 {[%clk 0:01:48.9]} 28...
Qb6 {[%clk 0:01:09.2]} 29. Qc4 {[%clk 0:01:48]} 29... Qb7 {[%clk 0:01:05]} 30.
Rc3 {[%clk 0:01:40]} 30... g6 {[%clk 0:00:44.5]} 31. b4 {[%clk 0:01:39.3]} 31...
axb4 {[%clk 0:00:41.5]} 32. axb4 {[%clk 0:01:39.7]} 32... Rf5 {[%clk 0:00:42.3]}
33. Nh4 {[%clk 0:01:06.8]} 33... Rd5 {[%clk 0:00:37.5]} 34. Nf3 {[%clk
0:01:05.9]} 34... e5 {[%clk 0:00:28]} 35. dxc5 {[%clk 0:00:48]} 35... Rd1+
{[%clk 0:00:28]} 36. Kh2 {[%clk 0:00:48.8]} 36... Rb1 {[%clk 0:00:28]} 37. c6
{[%clk 0:00:41.2]} 37... Qxb4 {[%clk 0:00:28.6]} 38. Nxe5 {[%clk 0:00:32.4]}
38... Qxc4 {[%clk 0:00:25.5]} 39. Rxc4 {[%clk 0:00:33.4]} 39... Kg7 {[%clk
0:00:20.7]} 40. Rd4 {[%clk 0:00:30.1]} 40... Rc7 {[%clk 0:00:20.9]} 41. Rd6
{[%clk 0:00:27.8]} 41... Rb2 {[%clk 0:00:20.3]} 42. Kg2 {[%clk 0:00:28.4]} 42...
Re2 {[%clk 0:00:21]} 43. Nf3 {[%clk 0:00:27]} 43... Rc2 {[%clk 0:00:21.2]} 44.
Nd4 {[%clk 0:00:26.9]} 44... Rc3 {[%clk 0:00:16.8]} 45. Rd7 {[%clk 0:00:25.3]}
45... R7xc6 {[%clk 0:00:14]} 46. Nxc6 {[%clk 0:00:25.9]} 46... Rxc6 {[%clk
0:00:15.9]} 1/2-1/2

[Event "*** Titled Tuesday Blitz"]
[Site "Chess.com"]
[Date "2018.04.03"]
[Round "3"]
[White "DrVitman"]
[Black "fancyknightmaneuvers"]
[Result "1/2-1/2"]
[WhiteElo "2526"]
[BlackElo "2520"]
[TimeControl "180+2"]
[EndTime "13:37:18 PDT"]
[Termination "Game drawn - insufficient material"]

1. d4 {[%clk 0:03:01.9]} 1... d5 {[%clk 0:03:00.4]} 2. Nf3 {[%clk 0:03:01.3]}
2... Nf6 {[%clk 0:02:58.3]} 3. Bf4 {[%clk 0:03:02]} 3... c5 {[%clk 0:02:59]} 4.
e3 {[%clk 0:03:02.2]} 4... Nc6 {[%clk 0:02:59.5]} 5. c3 {[%clk 0:03:03]} 5...
Qb6 {[%clk 0:03:00.9]} 6. Qb3 {[%clk 0:03:03]} 6... c4 {[%clk 0:03:01.1]} 7. Qc2
{[%clk 0:03:04]} 7... Bf5 {[%clk 0:03:01.3]} 8. Qc1 {[%clk 0:03:04.8]} 8... e6
{[%clk 0:03:01.3]} 9. h3 {[%clk 0:03:05.2]} 9... h6 {[%clk 0:02:54.5]} 10. Nbd2
{[%clk 0:03:04.6]} 10... Qa5 {[%clk 0:02:49.1]} 11. Be2 {[%clk 0:03:00.3]} 11...
b5 {[%clk 0:02:50.1]} 12. a3 {[%clk 0:02:59.5]} 12... Be7 {[%clk 0:02:48.7]} 13.
Ne5 {[%clk 0:02:47.4]} 13... Nxe5 {[%clk 0:02:40.8]} 14. Bxe5 {[%clk 0:02:49.3]}
14... O-O {[%clk 0:02:38]} 15. g4 {[%clk 0:02:49.3]} 15... Bg6 {[%clk
0:02:34.2]} 16. h4 {[%clk 0:02:50.3]} 16... Nd7 {[%clk 0:02:24]} 17. Bg3 {[%clk
0:02:46]} 17... Qb6 {[%clk 0:02:02.5]} 18. h5 {[%clk 0:02:27.7]} 18... Bh7
{[%clk 0:02:02]} 19. f4 {[%clk 0:02:27.1]} 19... a5 {[%clk 0:01:57]} 20. Bh4
{[%clk 0:02:22.6]} 20... Bxh4+ {[%clk 0:01:39.8]} 21. Rxh4 {[%clk 0:02:24.5]}
21... b4 {[%clk 0:01:35.7]} 22. g5 {[%clk 0:02:21.8]} 22... Rfb8 {[%clk
0:01:24.5]} 23. Rg4 {[%clk 0:01:49]} 23... hxg5 {[%clk 0:01:16.4]} 24. Rxg5
{[%clk 0:01:45.6]} 24... Kh8 {[%clk 0:01:17.6]} 25. axb4 {[%clk 0:01:41.6]}
25... axb4 {[%clk 0:01:17.5]} 26. Rxa8 {[%clk 0:01:41.8]} 26... Rxa8 {[%clk
0:01:16.9]} 27. Kf2 {[%clk 0:01:27.4]} 27... bxc3 {[%clk 0:01:11.9]} 28. bxc3
{[%clk 0:01:29.3]} 28... Ra2 {[%clk 0:01:12.8]} 29. h6 {[%clk 0:01:19.9]} 29...
gxh6 {[%clk 0:00:57.7]} 30. Rh5 {[%clk 0:01:20.9]} 30... Kg7 {[%clk 0:00:41.7]}
31. e4 {[%clk 0:01:00.6]} 31... Nf6 {[%clk 0:00:23.4]} 32. Qg1+ {[%clk
0:00:58.4]} 32... Bg6 {[%clk 0:00:24.1]} 33. Rxh6 {[%clk 0:00:43.6]} 33... Rxd2
{[%clk 0:00:18.8]} 34. f5 {[%clk 0:00:31.6]} 34... Qb2 {[%clk 0:00:15.8]} 35.
Rxg6+ {[%clk 0:00:31.1]} 35... fxg6 {[%clk 0:00:08]} 36. Qxg6+ {[%clk
0:00:31.2]} 36... Kf8 {[%clk 0:00:08.9]} 37. Qxf6+ {[%clk 0:00:32.3]} 37... Ke8
{[%clk 0:00:10.4]} 38. Qxe6+ {[%clk 0:00:33.2]} 38... Kf8 {[%clk 0:00:11.3]} 39.
exd5 {[%clk 0:00:26.9]} 39... Qxc3 {[%clk 0:00:09.3]} 40. Qf6+ {[%clk 0:00:25]}
40... Ke8 {[%clk 0:00:09.9]} 41. d6 {[%clk 0:00:24.8]} 41... Qxd4+ {[%clk
0:00:10]} 42. Qxd4 {[%clk 0:00:24]} 42... Rxd4 {[%clk 0:00:11.9]} 43. Ke3 {[%clk
0:00:25.3]} 43... Rh4 {[%clk 0:00:12.7]} 44. f6 {[%clk 0:00:26.3]} 44... c3
{[%clk 0:00:11.3]} 45. Bb5+ {[%clk 0:00:25.5]} 45... Kd8 {[%clk 0:00:10.7]} 46.
f7 {[%clk 0:00:25.8]} 46... Rh8 {[%clk 0:00:10.9]} 47. Kd3 {[%clk 0:00:24.8]}
47... Rf8 {[%clk 0:00:12]} 48. Be8 {[%clk 0:00:24]} 48... Rxe8 {[%clk
0:00:12.6]} 49. fxe8=Q+ {[%clk 0:00:25.1]} 49... Kxe8 {[%clk 0:00:14.5]} 50.
Kxc3 {[%clk 0:00:26]} 50... Kd7 {[%clk 0:00:16.4]} 51. Kd4 {[%clk 0:00:27.6]}
51... Kxd6 {[%clk 0:00:18.3]} 1/2-1/2

[Event "*** Titled Tuesday Blitz"]
[Site "Chess.com"]
[Date "2018.04.03"]
[Round "3"]
[White "AdrianaNikolova"]
[Black "Gattass"]
[Result "0-1"]
[WhiteElo "2352"]
[BlackElo "2207"]
[TimeControl "180+2"]
[EndTime "13:37:22 PDT"]
[Termination "Gattass won by resignation"]

1. e4 {[%clk 0:03:01.9]} 1... c5 {[%clk 0:02:57.8]} 2. Nf3 {[%clk 0:03:02.2]}
2... d6 {[%clk 0:02:58.5]} 3. d4 {[%clk 0:03:03]} 3... cxd4 {[%clk 0:03:00.4]}
4. Nxd4 {[%clk 0:03:04.8]} 4... Nf6 {[%clk 0:03:02.3]} 5. Nc3 {[%clk 0:03:06.2]}
5... a6 {[%clk 0:03:03.5]} 6. Bg5 {[%clk 0:03:07.5]} 6... e6 {[%clk 0:03:00.4]}
7. f4 {[%clk 0:03:08.4]} 7... Be7 {[%clk 0:03:00.3]} 8. Qf3 {[%clk 0:03:08.8]}
8... h6 {[%clk 0:02:56.2]} 9. Bxf6 {[%clk 0:02:59.7]} 9... Bxf6 {[%clk
0:02:56.4]} 10. O-O-O {[%clk 0:03:01.6]} 10... Qb6 {[%clk 0:02:56.6]} 11. Nb3
{[%clk 0:02:47.3]} 11... Qc7 {[%clk 0:02:53.7]} 12. f5 {[%clk 0:02:48]} 12...
Nc6 {[%clk 0:02:43.1]} 13. fxe6 {[%clk 0:02:47.5]} 13... Bxe6 {[%clk 0:02:31.9]}
14. Nd5 {[%clk 0:02:47.5]} 14... Bxd5 {[%clk 0:02:29.4]} 15. exd5 {[%clk
0:02:47.7]} 15... Ne5 {[%clk 0:02:29.7]} 16. Qf2 {[%clk 0:02:34.4]} 16... O-O
{[%clk 0:02:29.2]} 17. Kb1 {[%clk 0:02:33.5]} 17... a5 {[%clk 0:02:29.1]} 18.
Nd4 {[%clk 0:02:33.1]} 18... a4 {[%clk 0:02:28.7]} 19. a3 {[%clk 0:02:23.9]}
19... Qc5 {[%clk 0:02:29.1]} 20. Be2 {[%clk 0:02:15.3]} 20... b5 {[%clk
0:02:07.7]} 21. Rhf1 {[%clk 0:02:04.1]} 21... b4 {[%clk 0:02:06.8]} 22. Nc6
{[%clk 0:02:03.2]} 22... Qxf2 {[%clk 0:02:03.6]} 23. Rxf2 {[%clk 0:02:04]} 23...
bxa3 {[%clk 0:02:04.3]} 24. bxa3 {[%clk 0:01:52.5]} 24... Nd7 {[%clk 0:01:58.4]}
25. c4 {[%clk 0:01:31.3]} 25... Rfe8 {[%clk 0:01:57.4]} 26. Kc2 {[%clk
0:01:31.3]} 26... Nc5 {[%clk 0:01:56.2]} 27. Bd3 {[%clk 0:01:27.6]} 27... Re3
{[%clk 0:01:45.6]} 28. Nb4 {[%clk 0:01:19.4]} 28... Rb8 {[%clk 0:01:39.2]} 29.
Rf3 {[%clk 0:01:18.5]} 29... Rxf3 {[%clk 0:01:32.3]} 30. gxf3 {[%clk 0:01:20.4]}
30... Re8 {[%clk 0:01:27.2]} 31. Rd2 {[%clk 0:01:13.9]} 31... Re3 {[%clk
0:01:26.8]} 32. Re2 {[%clk 0:01:09.6]} 32... Rxe2+ {[%clk 0:01:22.5]} 33. Bxe2
{[%clk 0:01:11.5]} 33... Be5 {[%clk 0:01:19.2]} 34. h3 {[%clk 0:01:10.1]} 34...
g5 {[%clk 0:01:19.1]} 35. Nc6 {[%clk 0:01:04.5]} 35... Bf6 {[%clk 0:01:15.8]}
36. Kd2 {[%clk 0:01:02.8]} 36... Kg7 {[%clk 0:01:15.6]} 37. Kc2 {[%clk
0:00:56.6]} 37... Kg6 {[%clk 0:01:15.4]} 38. Na7 {[%clk 0:00:52.8]} 38... Kf5
{[%clk 0:01:13.5]} 39. Nb5 {[%clk 0:00:54]} 39... Be5 {[%clk 0:01:13.1]} 40. Nc7
{[%clk 0:00:34.1]} 40... Kf4 {[%clk 0:01:09.4]} 41. Nb5 {[%clk 0:00:26.4]} 41...
Kg3 {[%clk 0:01:08.4]} 42. Nc3 {[%clk 0:00:25]} 42... Kxh3 {[%clk 0:01:06.3]}
43. Ne4 {[%clk 0:00:15]} 43... Nxe4 {[%clk 0:01:02.3]} 44. fxe4 {[%clk
0:00:16.9]} 44... g4 {[%clk 0:01:04]} 45. Kd3 {[%clk 0:00:13.5]} 45... g3 {[%clk
0:01:03.2]} 46. Bf3 {[%clk 0:00:12.8]} 46... g2 {[%clk 0:01:02.7]} 47. Bxg2+
{[%clk 0:00:13.5]} 47... Kxg2 {[%clk 0:01:03.4]} 48. c5 {[%clk 0:00:15.4]} 48...
dxc5 {[%clk 0:01:04]} 49. Kc4 {[%clk 0:00:16.9]} 49... h5 {[%clk 0:01:04.6]} 50.
Kxc5 {[%clk 0:00:17.3]} 50... h4 {[%clk 0:01:05.3]} 51. d6 {[%clk 0:00:18.7]}
51... h3 {[%clk 0:01:05.7]} 52. d7 {[%clk 0:00:19.8]} 52... Bf6 {[%clk
0:01:05.7]} 53. e5 {[%clk 0:00:21]} 53... Bd8 {[%clk 0:01:05.1]} 0-1

[Event "*** Titled Tuesday Blitz"]
[Site "Chess.com"]
[Date "2018.04.03"]
[Round "3"]
[White "AndrewDGreen"]
[Black "chegueps"]
[Result "0-1"]
[WhiteElo "2131"]
[BlackElo "2268"]
[TimeControl "180+2"]
[EndTime "13:37:23 PDT"]
[Termination "chegueps won by resignation"]

1. d4 {[%clk 0:03:01.9]} 1... d6 {[%clk 0:02:17.6]} 2. e4 {[%clk 0:03:02.3]}
2... Nf6 {[%clk 0:02:17.1]} 3. Nc3 {[%clk 0:03:03.4]} 3... e5 {[%clk 0:02:18.6]}
4. Nf3 {[%clk 0:03:03.5]} 4... Nbd7 {[%clk 0:02:19.2]} 5. Bc4 {[%clk 0:03:04.4]}
5... Be7 {[%clk 0:02:20.3]} 6. O-O {[%clk 0:03:04.5]} 6... O-O {[%clk
0:02:17.5]} 7. a4 {[%clk 0:03:06]} 7... c6 {[%clk 0:02:15.2]} 8. h3 {[%clk
0:03:02.8]} 8... a5 {[%clk 0:02:15.7]} 9. Ba2 {[%clk 0:03:02.3]} 9... exd4
{[%clk 0:02:14.3]} 10. Qxd4 {[%clk 0:03:02.4]} 10... Nc5 {[%clk 0:02:09]} 11.
Bf4 {[%clk 0:02:57.3]} 11... Be6 {[%clk 0:02:05.9]} 12. Bg3 {[%clk 0:02:41.1]}
12... Bxa2 {[%clk 0:02:01.5]} 13. Nxa2 {[%clk 0:02:39.2]} 13... d5 {[%clk
0:01:59.3]} 14. exd5 {[%clk 0:02:34.1]} 14... Nxd5 {[%clk 0:01:54.1]} 15. c3
{[%clk 0:02:21.5]} 15... Ne6 {[%clk 0:01:53]} 16. Qd2 {[%clk 0:02:17.2]} 16...
Nc5 {[%clk 0:01:45.6]} 17. Nc1 {[%clk 0:02:09]} 17... Ne4 {[%clk 0:01:44.2]} 18.
Qd3 {[%clk 0:02:04.3]} 18... Nxg3 {[%clk 0:01:44.6]} 19. fxg3 {[%clk 0:02:06.2]}
19... Bd6 {[%clk 0:01:38.3]} 20. Nd4 {[%clk 0:02:04.2]} 20... Bc5 {[%clk
0:01:24.5]} 21. Ne2 {[%clk 0:02:03.3]} 21... Re8 {[%clk 0:01:22.4]} 22. Kh2
{[%clk 0:02:01.2]} 22... Re3 {[%clk 0:01:18.8]} 23. Qf5 {[%clk 0:02:02.4]} 23...
Qc7 {[%clk 0:01:15.8]} 24. Nf4 {[%clk 0:01:47.5]} 24... Rf8 {[%clk 0:01:03.6]}
25. Rae1 {[%clk 0:01:38.3]} 25... g6 {[%clk 0:00:58.2]} 26. Qg4 {[%clk
0:01:36.3]} 26... Rfe8 {[%clk 0:00:52.2]} 27. Nxd5 {[%clk 0:01:28.2]} 27... cxd5
{[%clk 0:00:53.2]} 28. Rxe3 {[%clk 0:01:21]} 28... Rxe3 {[%clk 0:00:53.6]} 29.
Nb5 {[%clk 0:01:17.3]} 29... Qd8 {[%clk 0:00:44.5]} 30. Rf3 {[%clk 0:01:07.9]}
30... Re4 {[%clk 0:00:35]} 31. Rf4 {[%clk 0:01:03.9]} 31... Re1 {[%clk
0:00:35.5]} 32. h4 {[%clk 0:00:57.8]} 32... h5 {[%clk 0:00:36.4]} 33. Qf3 {[%clk
0:00:51.4]} 33... Qd7 {[%clk 0:00:33.7]} 34. Nd4 {[%clk 0:00:45.7]} 34... Bd6
{[%clk 0:00:29.6]} 35. Qxd5 {[%clk 0:00:30.1]} 35... Qe7 {[%clk 0:00:26.6]} 36.
Nf3 {[%clk 0:00:09]} 36... Bxf4 {[%clk 0:00:24.2]} 37. gxf4 {[%clk 0:00:10.9]}
37... Re4 {[%clk 0:00:24.2]} 38. f5 {[%clk 0:00:09.7]} 38... Rg4 {[%clk
0:00:19.3]} 39. fxg6 {[%clk 0:00:08.7]} 39... Rxg6 {[%clk 0:00:20.2]} 40. Qxh5
{[%clk 0:00:09.7]} 40... Qd6+ {[%clk 0:00:20.9]} 41. Kh1 {[%clk 0:00:07.5]}
41... Qd1+ {[%clk 0:00:21]} 42. Kh2 {[%clk 0:00:08.7]} 42... Qe2 {[%clk
0:00:21.7]} 43. Ng5 {[%clk 0:00:05.3]} 43... Qxh5 {[%clk 0:00:22.1]} 0-1

[Event "*** Titled Tuesday Blitz"]
[Site "Chess.com"]
[Date "2018.04.03"]
[Round "3"]
[White "GMHess"]
[Black "Federer999"]
[Result "1/2-1/2"]
[WhiteElo "2505"]
[BlackElo "2672"]
[TimeControl "180+2"]
[EndTime "13:37:24 PDT"]
[Termination "Game drawn by agreement"]

1. d4 {[%clk 0:02:52.8]} 1... Nf6 {[%clk 0:02:57.8]} 2. c4 {[%clk 0:02:52.2]}
2... e6 {[%clk 0:02:58.2]} 3. Nc3 {[%clk 0:02:53.5]} 3... Bb4 {[%clk 0:02:56.7]}
4. Qc2 {[%clk 0:02:54.1]} 4... Bxc3+ {[%clk 0:02:53.9]} 5. Qxc3 {[%clk
0:02:54.7]} 5... d5 {[%clk 0:02:52.2]} 6. Nf3 {[%clk 0:02:39.2]} 6... O-O {[%clk
0:02:46.2]} 7. Bg5 {[%clk 0:02:37.6]} 7... dxc4 {[%clk 0:02:43.9]} 8. Qxc4
{[%clk 0:02:37.5]} 8... b6 {[%clk 0:02:43.7]} 9. Rc1 {[%clk 0:02:25.7]} 9... c6
{[%clk 0:02:16]} 10. Ne5 {[%clk 0:02:26.5]} 10... Ba6 {[%clk 0:02:10.7]} 11.
Nxc6 {[%clk 0:02:02.7]} 11... Bxc4 {[%clk 0:02:02.6]} 12. Nxd8 {[%clk
0:02:03.4]} 12... Bd5 {[%clk 0:02:03.4]} 13. Nxf7 {[%clk 0:01:37.1]} 13... Kxf7
{[%clk 0:02:03.7]} 14. f3 {[%clk 0:01:32]} 14... h6 {[%clk 0:01:56.9]} 15. Rc7+
{[%clk 0:01:28.6]} 15... Kg6 {[%clk 0:01:50.9]} 16. Bxf6 {[%clk 0:01:21.8]}
16... gxf6 {[%clk 0:01:46.6]} 17. e4 {[%clk 0:01:22.9]} 17... Bc6 {[%clk
0:01:40.3]} 18. Bc4 {[%clk 0:00:42.2]} 18... Rf7 {[%clk 0:01:24.7]} 19. Rxf7
{[%clk 0:00:33.3]} 19... Kxf7 {[%clk 0:01:23.1]} 20. Kd2 {[%clk 0:00:35.2]}
20... Ke7 {[%clk 0:01:06.2]} 21. Rc1 {[%clk 0:00:31.6]} 21... Kd6 {[%clk
0:01:02.1]} 22. Ke3 {[%clk 0:00:27.2]} 22... Bb7 {[%clk 0:00:57.3]} 23. f4
{[%clk 0:00:20.3]} 23... Nd7 {[%clk 0:00:57.9]} 24. e5+ {[%clk 0:00:20.6]} 24...
Ke7 {[%clk 0:00:51.4]} 25. Bb5 {[%clk 0:00:18.8]} 25... Rc8 {[%clk 0:00:50.2]}
26. Rxc8 {[%clk 0:00:19.6]} 26... Bxc8 {[%clk 0:00:52.1]} 27. g4 {[%clk
0:00:17.8]} 27... Bb7 {[%clk 0:00:52.5]} 28. h4 {[%clk 0:00:18.7]} 28... Nb8
{[%clk 0:00:53]} 29. Bd3 {[%clk 0:00:14.9]} 29... Bd5 {[%clk 0:00:53.5]} 30. a3
{[%clk 0:00:14.5]} 30... a5 {[%clk 0:00:51.6]} 31. Bb5 {[%clk 0:00:10.9]} 31...
Nc6 {[%clk 0:00:51.3]} 32. Bxc6 {[%clk 0:00:12]} 32... Bxc6 {[%clk 0:00:51.7]}
33. f5 {[%clk 0:00:13.3]} 33... Bg2 {[%clk 0:00:50.3]} 34. Kf4 {[%clk
0:00:13.5]} 34... Bf1 {[%clk 0:00:48.6]} 35. g5 {[%clk 0:00:10.5]} 35... hxg5+
{[%clk 0:00:48.4]} 36. hxg5 {[%clk 0:00:12.4]} 36... fxg5+ {[%clk 0:00:49.5]}
37. Kxg5 {[%clk 0:00:13.9]} 37... exf5 {[%clk 0:00:51.1]} 38. Kxf5 {[%clk
0:00:15.8]} 38... Bd3+ {[%clk 0:00:51.5]} 39. Kf4 {[%clk 0:00:14.2]} 39... Ke6
{[%clk 0:00:52.5]} 40. Ke3 {[%clk 0:00:14.9]} 40... Bh7 {[%clk 0:00:54]} 41. Kd2
{[%clk 0:00:14.7]} 41... Kd5 {[%clk 0:00:55.9]} 42. Kc3 {[%clk 0:00:16.6]} 42...
Bg8 {[%clk 0:00:55.7]} 43. a4 {[%clk 0:00:17.6]} 43... Be6 {[%clk 0:00:51.5]}
44. b4 {[%clk 0:00:18.7]} 44... Bd7 {[%clk 0:00:23.6]} 45. bxa5 {[%clk
0:00:18.1]} 45... bxa5 {[%clk 0:00:25.5]} 46. Kb2 {[%clk 0:00:18.1]} 46... Kxd4
{[%clk 0:00:26.2]} 47. Ka1 {[%clk 0:00:20]} 47... Kxe5 {[%clk 0:00:27.4]} 48.
Kb2 {[%clk 0:00:20.4]} 48... Kd4 {[%clk 0:00:29.3]} 49. Ka1 {[%clk 0:00:22.3]}
49... Kc4 {[%clk 0:00:31.1]} 50. Kb2 {[%clk 0:00:23.5]} 50... Kb4 {[%clk
0:00:33]} 51. Ka1 {[%clk 0:00:25]} 1/2-1/2

[Event "*** Titled Tuesday Blitz"]
[Site "Chess.com"]
[Date "2018.04.03"]
[Round "3"]
[White "SergeiAza"]
[Black "pultineviciuspaulius"]
[Result "1-0"]
[WhiteElo "2676"]
[BlackElo "2606"]
[TimeControl "180+2"]
[EndTime "13:37:24 PDT"]
[Termination "SergeiAza won by resignation"]

1. e4 {[%clk 0:03:01.9]} 1... e5 {[%clk 0:02:57.4]} 2. Nf3 {[%clk 0:03:02.8]}
2... Nc6 {[%clk 0:02:58.6]} 3. Bb5 {[%clk 0:03:03.7]} 3... a6 {[%clk 0:02:59.7]}
4. Ba4 {[%clk 0:03:04.8]} 4... Nf6 {[%clk 0:03:00.9]} 5. O-O {[%clk 0:03:05.6]}
5... Be7 {[%clk 0:03:02]} 6. Re1 {[%clk 0:03:07.1]} 6... b5 {[%clk 0:03:03]} 7.
Bb3 {[%clk 0:03:08.7]} 7... d6 {[%clk 0:03:04.4]} 8. c3 {[%clk 0:03:10.3]} 8...
O-O {[%clk 0:03:05.4]} 9. h3 {[%clk 0:03:11.8]} 9... Na5 {[%clk 0:03:06.4]} 10.
Bc2 {[%clk 0:03:12.6]} 10... c5 {[%clk 0:03:07.6]} 11. d4 {[%clk 0:03:14.2]}
11... Nd7 {[%clk 0:03:09]} 12. d5 {[%clk 0:03:13.6]} 12... Nb6 {[%clk 0:03:10]}
13. Nbd2 {[%clk 0:03:09.3]} 13... g6 {[%clk 0:03:10.7]} 14. Nf1 {[%clk
0:02:59.3]} 14... f5 {[%clk 0:03:09]} 15. exf5 {[%clk 0:02:52.6]} 15... gxf5
{[%clk 0:03:10.9]} 16. b3 {[%clk 0:02:42]} 16... Bf6 {[%clk 0:02:57.6]} 17. Bd2
{[%clk 0:02:26.7]} 17... e4 {[%clk 0:02:53.9]} 18. N3h2 {[%clk 0:02:25.1]} 18...
Nxd5 {[%clk 0:02:46.9]} 19. c4 {[%clk 0:02:15.7]} 19... Ne7 {[%clk 0:01:40.8]}
20. Ng3 {[%clk 0:02:08.9]} 20... b4 {[%clk 0:01:36]} 21. Nh5 {[%clk 0:02:06.5]}
21... Ng6 {[%clk 0:01:33.5]} 22. Nxf6+ {[%clk 0:01:51.3]} 22... Qxf6 {[%clk
0:01:35.1]} 23. a3 {[%clk 0:01:37.3]} 23... Nc6 {[%clk 0:01:26.1]} 24. axb4
{[%clk 0:01:37.4]} 24... cxb4 {[%clk 0:01:26.3]} 25. Nf1 {[%clk 0:01:27.1]}
25... Be6 {[%clk 0:01:19]} 26. Ng3 {[%clk 0:01:24.2]} 26... a5 {[%clk
0:01:13.8]} 27. Nh5 {[%clk 0:01:21.1]} 27... Qe7 {[%clk 0:01:00.7]} 28. Bc1
{[%clk 0:01:13.7]} 28... Nce5 {[%clk 0:00:55.2]} 29. Re3 {[%clk 0:01:10.3]}
29... Bd7 {[%clk 0:00:50.9]} 30. Rg3 {[%clk 0:01:09.2]} 30... Bc6 {[%clk
0:00:51.8]} 31. Bg5 {[%clk 0:01:02.3]} 31... Qe6 {[%clk 0:00:49.6]} 32. Nf4
{[%clk 0:01:01.4]} 32... Nxf4 {[%clk 0:00:49.1]} 33. Bxf4+ {[%clk 0:01:02.2]}
33... Ng6 {[%clk 0:00:47.1]} 34. h4 {[%clk 0:00:51.3]} 34... Kh8 {[%clk
0:00:37]} 35. Bxd6 {[%clk 0:00:46.3]} 35... Rad8 {[%clk 0:00:30.5]} 36. c5
{[%clk 0:00:46.9]} 36... f4 {[%clk 0:00:31.3]} 37. Rg5 {[%clk 0:00:41.4]} 37...
e3 {[%clk 0:00:31.1]} 38. Qd4+ {[%clk 0:00:17.6]} 38... Rf6 {[%clk 0:00:32]} 39.
Bxg6 {[%clk 0:00:16.4]} 39... exf2+ {[%clk 0:00:32.9]} 40. Qxf2 {[%clk 0:00:10]}
40... Rxg6 {[%clk 0:00:26.3]} 41. Rxg6 {[%clk 0:00:09.7]} 41... Qxg6 {[%clk
0:00:26.8]} 42. Re1 {[%clk 0:00:08.9]} 42... Be4 {[%clk 0:00:21.3]} 43. Qd4+
{[%clk 0:00:09.4]} 43... Kg8 {[%clk 0:00:20.1]} 44. Qxe4 {[%clk 0:00:10.1]}
44... Qxe4 {[%clk 0:00:20.1]} 45. Rxe4 {[%clk 0:00:10.6]} 45... Rd7 {[%clk
0:00:17.6]} 46. Rxf4 {[%clk 0:00:11.5]} 46... Rb7 {[%clk 0:00:18.9]} 47. c6
{[%clk 0:00:09.1]} 47... Rb6 {[%clk 0:00:20.3]} 48. c7 {[%clk 0:00:09.6]} 48...
Rc6 {[%clk 0:00:21.7]} 49. Rc4 {[%clk 0:00:10.6]} 49... Rxc4 {[%clk 0:00:22.5]}
50. bxc4 {[%clk 0:00:11.4]} 1-0